[Event "Titled Tuesday Blitz July 18 Late 2023"]
[White "Chen, Justin"]
[Black "Jorajuria Mendoza, Algol"]
[WhiteFideId "2098199"]
[BlackFideId "5128897"]
[WhiteElo "2612"]
[BlackElo "2364"]
[Result "1-0"]
[Round "1"]
[TimeControl "180+2"]
[Date "2023.07.18"]
[WhiteClock "0:00:30"]
[BlackClock "0:00:28"]
[Board "104"]

1. d4 {[%clk 0:02:59]}  Nf6 {[%clk 0:02:22]} 2. Nf3 {[%clk 0:03:00]}  e6 {[%clk 0:02:21]} 3. g3 {[%clk 0:03:01]}  d5 {[%clk 0:02:21]} 4. Bg2 {[%clk 0:02:43]}  c5 {[%clk 0:02:18]} 5. O-O {[%clk 0:02:44]}  cxd4 {[%clk 0:02:15]} 6. Nxd4 {[%clk 0:02:41]}  e5 {[%clk 0:02:15]} 7. Nb3 {[%clk 0:02:42]}  h6 {[%clk 0:02:12]} 8. Nc3 {[%clk 0:02:41]}  Be6 {[%clk 0:02:07]} 9. f4 {[%clk 0:02:40]}  e4 {[%clk 0:01:49]} 10. Kh1 {[%clk 0:02:33]}  Nc6 {[%clk 0:01:42]} 11. f5 {[%clk 0:02:31]}  Bc8 {[%clk 0:01:39]} 12. Be3 {[%clk 0:02:31]}  Bb4 {[%clk 0:01:24]} 13. Bd4 {[%clk 0:01:54]}  Nxd4 {[%clk 0:01:02]} 14. Qxd4 {[%clk 0:01:55]}  Bxc3 {[%clk 0:01:03]} 15. Qxc3 {[%clk 0:01:51]}  O-O {[%clk 0:00:58]} 16. Rad1 {[%clk 0:01:52]}  Qe7 {[%clk 0:00:50]} 17. h3 {[%clk 0:01:52]}  h5 {[%clk 0:00:39]} 18. Nd4 {[%clk 0:01:45]}  Bd7 {[%clk 0:00:35]} 19. Qe3 {[%clk 0:01:31]}  Qe5 {[%clk 0:00:30]} 20. c3 {[%clk 0:01:28]}  h4 {[%clk 0:00:21]} 21. g4 {[%clk 0:01:28]}  Nh7 {[%clk 0:00:20]} 22. Rf2 {[%clk 0:01:10]}  Bc6 {[%clk 0:00:20]} 23. Rg1 {[%clk 0:01:09]}  Rae8 {[%clk 0:00:19]} 24. g5 {[%clk 0:01:06]}  Qg3 {[%clk 0:00:13]} 25. Qf4 {[%clk 0:01:02]}  Qxf4 {[%clk 0:00:13]} 26. Rxf4 {[%clk 0:01:02]}  Nxg5 {[%clk 0:00:13]} 27. f6 {[%clk 0:01:00]}  Ne6 {[%clk 0:00:13]} 28. Rxh4 {[%clk 0:00:55]}  g6 {[%clk 0:00:12]} 29. e3 {[%clk 0:00:48]}  Nxd4 {[%clk 0:00:13]} 30. cxd4 {[%clk 0:00:49]}  Re6 {[%clk 0:00:13]} 31. Rf4 {[%clk 0:00:48]}  Rd8 {[%clk 0:00:14]} 32. Rc1 {[%clk 0:00:47]}  Rdd6 {[%clk 0:00:14]} 33. Rcf1 {[%clk 0:00:47]}  Bd7 {[%clk 0:00:14]} 34. h4 {[%clk 0:00:48]}  Rc6 {[%clk 0:00:15]} 35. Kh2 {[%clk 0:00:43]}  Kh7 {[%clk 0:00:15]} 36. Kg3 {[%clk 0:00:43]}  Rc2 {[%clk 0:00:15]} 37. R4f2 {[%clk 0:00:44]}  Rxf2 {[%clk 0:00:15]} 38. Rxf2 {[%clk 0:00:45]}  Rc6 {[%clk 0:00:15]} 39. Bf1 {[%clk 0:00:37]}  Bf5 {[%clk 0:00:16]} 40. Kf4 {[%clk 0:00:35]}  Rxf6 {[%clk 0:00:15]} 41. Ke5 {[%clk 0:00:36]}  Kg7 {[%clk 0:00:13]} 42. a4 {[%clk 0:00:24]}  Rb6 {[%clk 0:00:13]} 43. Kxd5 {[%clk 0:00:22]}  Rb3 {[%clk 0:00:13]} 44. Re2 {[%clk 0:00:11]}  Rb4 {[%clk 0:00:14]} 45. Bg2 {[%clk 0:00:06]}  Rxa4 {[%clk 0:00:13]} 46. Ke5 {[%clk 0:00:06]}  Ra5+ {[%clk 0:00:13]} 47. Kf4 {[%clk 0:00:07]}  Rb5 {[%clk 0:00:11]} 48. Bxe4 {[%clk 0:00:07]}  Bxe4 {[%clk 0:00:12]} 49. Kxe4 {[%clk 0:00:08]}  a5 {[%clk 0:00:13]} 50. d5 {[%clk 0:00:07]}  Kf6 {[%clk 0:00:13]} 51. Kd4 {[%clk 0:00:07]}  Ke7 {[%clk 0:00:13]} 52. e4 {[%clk 0:00:08]}  a4 {[%clk 0:00:13]} 53. Kc4 {[%clk 0:00:06]}  Rb3 {[%clk 0:00:14]} 54. e5 {[%clk 0:00:07]}  Rh3 {[%clk 0:00:13]} 55. Kc5 {[%clk 0:00:05]}  Rxh4 {[%clk 0:00:13]} 56. e6 {[%clk 0:00:05]}  Rh5 {[%clk 0:00:12]} 57. Kc4 {[%clk 0:00:03]}  fxe6 {[%clk 0:00:11]} 58. Rxe6+ {[%clk 0:00:04]}  Kd7 {[%clk 0:00:12]} 59. Rxg6 {[%clk 0:00:04]}  Rh2 {[%clk 0:00:10]} 60. Rb6 {[%clk 0:00:05]}  Rc2+ {[%clk 0:00:10]} 61. Kd3 {[%clk 0:00:04]}  Rc5 {[%clk 0:00:10]} 62. Kd4 {[%clk 0:00:02]}  Rc7 {[%clk 0:00:10]} 63. Rb4 {[%clk 0:00:02]}  Rc2 {[%clk 0:00:09]} 64. Rxb7+ {[%clk 0:00:02]}  Kd6 {[%clk 0:00:10]} 65. Rb4 {[%clk 0:00:03]}  Rd2+ {[%clk 0:00:09]} 66. Kc3 {[%clk 0:00:03]}  Rxd5 {[%clk 0:00:10]} 67. Rxa4 {[%clk 0:00:03]}  Kc6 {[%clk 0:00:10]} 68. Ra6+ {[%clk 0:00:02]}  Kb5 {[%clk 0:00:11]} 69. Rf6 {[%clk 0:00:03]}  Rc5+ {[%clk 0:00:11]} 70. Kb3 {[%clk 0:00:03]}  Rd5 {[%clk 0:00:11]} 71. Rf3 {[%clk 0:00:03]}  Re5 {[%clk 0:00:12]} 72. Rd3 {[%clk 0:00:04]}  Rf5 {[%clk 0:00:12]} 73. Rc3 {[%clk 0:00:04]}  Re5 {[%clk 0:00:12]} 74. Ka3 {[%clk 0:00:04]}  Rf5 {[%clk 0:00:13]} 75. Rb3+ {[%clk 0:00:05]}  Ka5 {[%clk 0:00:12]} 76. Rb8 {[%clk 0:00:06]}  Re5 {[%clk 0:00:13]} 77. Ra8+ {[%clk 0:00:06]}  Kb5 {[%clk 0:00:14]} 78. Rd8 {[%clk 0:00:07]}  Re3+ {[%clk 0:00:13]} 79. b3 {[%clk 0:00:07]}  Re6 {[%clk 0:00:14]} 80. Rd5+ {[%clk 0:00:07]}  Kc6 {[%clk 0:00:14]} 81. Rh5 {[%clk 0:00:07]}  Kb6 {[%clk 0:00:15]} 82. Ka4 {[%clk 0:00:08]}  Re4+ {[%clk 0:00:15]} 83. b4 {[%clk 0:00:08]}  Re1 {[%clk 0:00:15]} 84. Rh6+ {[%clk 0:00:08]}  Kb7 {[%clk 0:00:16]} 85. Ka5 {[%clk 0:00:09]}  Re5+ {[%clk 0:00:16]} 86. b5 {[%clk 0:00:08]}  Re7 {[%clk 0:00:16]} 87. Rg6 {[%clk 0:00:09]}  Rd7 {[%clk 0:00:16]} 88. Rc6 {[%clk 0:00:09]}  Re7 {[%clk 0:00:17]} 89. Rf6 {[%clk 0:00:09]}  Rd7 {[%clk 0:00:17]} 90. Rf5 {[%clk 0:00:09]}  Re7 {[%clk 0:00:18]} 91. Rg5 {[%clk 0:00:10]}  Rd7 {[%clk 0:00:18]} 92. Rh5 {[%clk 0:00:10]}  Re7 {[%clk 0:00:19]} 93. Rd5 {[%clk 0:00:10]}  Rf7 {[%clk 0:00:19]} 94. Re5 {[%clk 0:00:11]}  Rh7 {[%clk 0:00:20]} 95. Re6 {[%clk 0:00:11]}  Rg7 {[%clk 0:00:20]} 96. Rb6+ {[%clk 0:00:11]}  Ka7 {[%clk 0:00:20]} 97. Ra6+ {[%clk 0:00:12]}  Kb7 {[%clk 0:00:21]} 98. Rd6 {[%clk 0:00:13]}  Rf7 {[%clk 0:00:21]} 99. Rd4 {[%clk 0:00:13]}  Re7 {[%clk 0:00:21]} 100. Rf4 {[%clk 0:00:14]}  Rg7 {[%clk 0:00:22]} 101. Rh4 {[%clk 0:00:13]}  Re7 {[%clk 0:00:22]} 102. Rh5 {[%clk 0:00:14]}  Rd7 {[%clk 0:00:22]} 103. Rh6 {[%clk 0:00:14]}  Re7 {[%clk 0:00:23]} 104. Rh3 {[%clk 0:00:14]}  Rg7 {[%clk 0:00:23]} 105. Rh2 {[%clk 0:00:15]}  Rf7 {[%clk 0:00:23]} 106. Re2 {[%clk 0:00:15]}  Rg7 {[%clk 0:00:24]} 107. Re1 {[%clk 0:00:15]}  Rf7 {[%clk 0:00:24]} 108. Rd1 {[%clk 0:00:16]}  Rg7 {[%clk 0:00:24]} 109. Rc1 {[%clk 0:00:17]}  Rh7 {[%clk 0:00:25]} 110. Rg1 {[%clk 0:00:17]}  Rf7 {[%clk 0:00:25]} 111. Rh1 {[%clk 0:00:17]}  Rd7 {[%clk 0:00:26]} 112. Re1 {[%clk 0:00:18]}  Rc7 {[%clk 0:00:26]} 113. Rf1 {[%clk 0:00:18]}  Rg7 {[%clk 0:00:26]} 114. Re1 {[%clk 0:00:18]}  Rh7 {[%clk 0:00:27]} 115. Re2 {[%clk 0:00:18]}  Rg7 {[%clk 0:00:27]} 116. Re6 {[%clk 0:00:19]}  Rf7 {[%clk 0:00:27]} 117. Ra6 {[%clk 0:00:19]}  Rg7 {[%clk 0:00:27]} 118. Rc6 {[%clk 0:00:20]}  Rf7 {[%clk 0:00:27]} 119. Rc4 {[%clk 0:00:20]}  Rg7 {[%clk 0:00:27]} 120. Kb4 {[%clk 0:00:21]}  Rh7 {[%clk 0:00:28]} 121. Rd4 {[%clk 0:00:22]}  Rf7 {[%clk 0:00:28]} 122. Re4 {[%clk 0:00:23]}  Rg7 {[%clk 0:00:28]} 123. Rh4 {[%clk 0:00:23]}  Re7 {[%clk 0:00:28]} 124. Rf4 {[%clk 0:00:24]}  Rd7 {[%clk 0:00:29]} 125. Kc5 {[%clk 0:00:23]}  Rc7+ {[%clk 0:00:29]} 126. Kd5 {[%clk 0:00:24]}  Rd7+ {[%clk 0:00:29]} 127. Kc5 {[%clk 0:00:24]}  Rc7+ {[%clk 0:00:30]} 128. Kb4 {[%clk 0:00:25]}  Rd7 {[%clk 0:00:30]} 129. Re4 {[%clk 0:00:25]}  Rf7 {[%clk 0:00:30]} 130. Rd4 {[%clk 0:00:26]}  Rg7 {[%clk 0:00:31]} 131. Rd6 {[%clk 0:00:26]}  Rf7 {[%clk 0:00:31]} 132. Kc5 {[%clk 0:00:26]}  Rc7+ {[%clk 0:00:31]} 133. Rc6 {[%clk 0:00:26]}  Rxc6+ {[%clk 0:00:30]} 134. bxc6+ {[%clk 0:00:27]}  Kc7 {[%clk 0:00:30]} 135. Kb5 {[%clk 0:00:28]}  Kc8 {[%clk 0:00:31]} 136. Kb6 {[%clk 0:00:29]}  Kb8 {[%clk 0:00:31]} 137. Ka5 {[%clk 0:00:29]}  Kc7 {[%clk 0:00:32]} 138. Kb5 {[%clk 0:00:30]}  Kc8 {[%clk 0:00:32]} 139. Kc5 {[%clk 0:00:31]}  Kb8 {[%clk 0:00:28]} 140. Kd6 {[%clk 0:00:30]} 1-0


[Site "https://www.chess.com"]

[Event "Titled Tuesday Blitz July 18 Late 2023"]
[White "Tarasova, Viktoriya"]
[Black "Ganiev, Roman"]
[WhiteFideId "4175840"]
[BlackFideId "4131452"]
[WhiteElo "2361"]
[BlackElo "2609"]
[Result "1/2-1/2"]
[Round "1"]
[TimeControl "180+2"]
[Date "2023.07.18"]
[WhiteClock "0:00:06"]
[BlackClock "0:00:14"]
[Board "105"]

1. d4 {[%clk 0:03:00]}  Nf6 {[%clk 0:02:59]} 2. c4 {[%clk 0:03:00]}  e6 {[%clk 0:02:57]} 3. Nc3 {[%clk 0:03:00]}  Bb4 {[%clk 0:02:56]} 4. e3 {[%clk 0:02:59]}  O-O {[%clk 0:02:55]} 5. Ne2 {[%clk 0:02:59]}  b6 {[%clk 0:02:53]} 6. a3 {[%clk 0:02:56]}  Bxc3+ {[%clk 0:02:53]} 7. Nxc3 {[%clk 0:02:56]}  Bb7 {[%clk 0:02:53]} 8. d5 {[%clk 0:02:57]}  d6 {[%clk 0:02:51]} 9. Be2 {[%clk 0:02:56]}  Nbd7 {[%clk 0:02:50]} 10. O-O {[%clk 0:02:56]}  e5 {[%clk 0:02:46]} 11. e4 {[%clk 0:02:52]}  c6 {[%clk 0:02:43]} 12. f3 {[%clk 0:02:47]}  cxd5 {[%clk 0:02:31]} 13. cxd5 {[%clk 0:02:46]}  Rc8 {[%clk 0:02:21]} 14. Be3 {[%clk 0:02:45]}  Nh5 {[%clk 0:02:15]} 15. Nb5 {[%clk 0:02:39]}  Qe7 {[%clk 0:02:05]} 16. Nxa7 {[%clk 0:02:38]}  Ra8 {[%clk 0:01:58]} 17. Nc6 {[%clk 0:02:26]}  Qh4 {[%clk 0:01:44]} 18. Qe1 {[%clk 0:02:18]}  Qf6 {[%clk 0:01:32]} 19. g3 {[%clk 0:02:02]}  g6 {[%clk 0:01:25]} 20. Rc1 {[%clk 0:02:00]}  Nc5 {[%clk 0:01:21]} 21. Qb4 {[%clk 0:01:53]}  Ba6 {[%clk 0:01:12]} 22. Bxa6 {[%clk 0:01:41]}  Rxa6 {[%clk 0:01:13]} 23. Qb5 {[%clk 0:01:29]}  Rfa8 {[%clk 0:01:03]} 24. Qe2 {[%clk 0:01:21]}  Ra4 {[%clk 0:00:56]} 25. Rc2 {[%clk 0:01:12]}  Ng7 {[%clk 0:00:54]} 26. Rfc1 {[%clk 0:01:01]}  Nb3 {[%clk 0:00:44]} 27. Rd1 {[%clk 0:01:00]}  Nc5 {[%clk 0:00:43]} 28. Kg2 {[%clk 0:00:52]}  h5 {[%clk 0:00:43]} 29. h4 {[%clk 0:00:50]}  Ne8 {[%clk 0:00:36]} 30. Bg5 {[%clk 0:00:49]}  Qg7 {[%clk 0:00:32]} 31. Bc1 {[%clk 0:00:37]}  f6 {[%clk 0:00:29]} 32. Be3 {[%clk 0:00:23]}  Nd7 {[%clk 0:00:29]} 33. Qd2 {[%clk 0:00:21]}  Nc5 {[%clk 0:00:29]} 34. Nb4 {[%clk 0:00:16]}  Qd7 {[%clk 0:00:28]} 35. Nc6 {[%clk 0:00:08]}  f5 {[%clk 0:00:28]} 36. Bxc5 {[%clk 0:00:08]}  bxc5 {[%clk 0:00:25]} 37. Qg5 {[%clk 0:00:09]}  Qf7 {[%clk 0:00:20]} 38. Ne7+ {[%clk 0:00:07]}  Kh7 {[%clk 0:00:19]} 39. exf5 {[%clk 0:00:08]}  gxf5 {[%clk 0:00:19]} 40. Qxf5+ {[%clk 0:00:06]}  Qxf5 {[%clk 0:00:19]} 41. Nxf5 {[%clk 0:00:07]}  Kg6 {[%clk 0:00:20]} 42. Ne3 {[%clk 0:00:07]}  Rb8 {[%clk 0:00:19]} 43. Nc4 {[%clk 0:00:07]}  Kf6 {[%clk 0:00:17]} 44. Nd2 {[%clk 0:00:05]}  Ke7 {[%clk 0:00:17]} 45. Ne4 {[%clk 0:00:06]}  Nc7 {[%clk 0:00:16]} 46. Kh3 {[%clk 0:00:05]}  Rd4 {[%clk 0:00:16]} 47. Rcd2 {[%clk 0:00:05]}  Nxd5 {[%clk 0:00:16]} 48. Rxd4 {[%clk 0:00:05]}  cxd4 {[%clk 0:00:17]} 49. Rd2 {[%clk 0:00:03]}  Ne3 {[%clk 0:00:17]} 50. g4 {[%clk 0:00:03]}  hxg4+ {[%clk 0:00:17]} 51. fxg4 {[%clk 0:00:04]}  Ke6 {[%clk 0:00:18]} 52. Ng5+ {[%clk 0:00:04]}  Kd5 {[%clk 0:00:18]} 53. h5 {[%clk 0:00:04]}  Nc4 {[%clk 0:00:18]} 54. Rf2 {[%clk 0:00:04]}  d3 {[%clk 0:00:18]} 55. Nf3 {[%clk 0:00:03]}  e4 {[%clk 0:00:18]} 56. Ng5 {[%clk 0:00:03]}  e3 {[%clk 0:00:18]} 57. Rf5+ {[%clk 0:00:04]}  Kd4 {[%clk 0:00:18]} 58. Nf3+ {[%clk 0:00:04]}  Ke4 {[%clk 0:00:17]} 59. Ng5+ {[%clk 0:00:05]}  Kd4 {[%clk 0:00:14]} 60. Nf3+ {[%clk 0:00:05]}  Ke4 {[%clk 0:00:13]} 61. Ng5+ {[%clk 0:00:06]}  Kd4 {[%clk 0:00:14]} 1/2-1/2


[Site "https://www.chess.com"]

[Event "Titled Tuesday Blitz July 18 Late 2023"]
[White "Senft, Sean"]
[Black "David, Bogdan-Emanuel"]
[WhiteFideId "2044960"]
[BlackFideId "1229907"]
[WhiteElo "2357"]
[BlackElo "2607"]
[Result "0-1"]
[Round "1"]
[TimeControl "180+2"]
[Date "2023.07.18"]
[WhiteClock "0:02:04"]
[BlackClock "0:01:40"]
[Board "107"]

1. d4 {[%clk 0:03:00]}  d6 {[%clk 0:02:59]} 2. c4 {[%clk 0:03:01]}  e5 {[%clk 0:02:59]} 3. Nf3 {[%clk 0:03:00]}  e4 {[%clk 0:02:59]} 4. Nfd2 {[%clk 0:02:59]}  f5 {[%clk 0:02:58]} 5. Nc3 {[%clk 0:02:58]}  Nf6 {[%clk 0:02:55]} 6. Nb3 {[%clk 0:02:57]}  g6 {[%clk 0:02:54]} 7. Bg5 {[%clk 0:02:46]}  h6 {[%clk 0:02:48]} 8. Bxf6 {[%clk 0:02:45]}  Qxf6 {[%clk 0:02:49]} 9. Qd2 {[%clk 0:02:45]}  Bg7 {[%clk 0:02:48]} 10. g3 {[%clk 0:02:44]}  O-O {[%clk 0:02:45]} 11. h4 {[%clk 0:02:44]}  a5 {[%clk 0:02:37]} 12. Nd5 {[%clk 0:02:40]}  Qf7 {[%clk 0:02:37]} 13. Nxa5 {[%clk 0:02:34]}  Be6 {[%clk 0:02:22]} 14. e3 {[%clk 0:02:30]}  b6 {[%clk 0:02:04]} 15. Nb3 {[%clk 0:02:30]}  Bxd5 {[%clk 0:02:04]} 16. cxd5 {[%clk 0:02:30]}  Qxd5 {[%clk 0:02:05]} 17. Rc1 {[%clk 0:02:29]}  b5 {[%clk 0:02:03]} 18. Qb4 {[%clk 0:02:17]}  c6 {[%clk 0:01:55]} 19. a3 {[%clk 0:02:09]}  Na6 {[%clk 0:01:49]} 20. Qc3 {[%clk 0:02:09]}  Rfc8 {[%clk 0:01:46]} 21. Be2 {[%clk 0:02:07]}  Kh7 {[%clk 0:01:45]} 22. O-O {[%clk 0:02:07]}  Rab8 {[%clk 0:01:45]} 23. f3 {[%clk 0:02:07]}  c5 {[%clk 0:01:41]} 24. dxc5 {[%clk 0:02:04]}  Bxc3 {[%clk 0:01:40]} 0-1


[Site "https://www.chess.com"]

[Event "Titled Tuesday Blitz July 18 Late 2023"]
[White "morozcoma"]
[Black "Piesik, Piotr"]
[BlackFideId "1136194"]
[WhiteElo "2356"]
[BlackElo "2602"]
[Result "0-1"]
[Round "1"]
[TimeControl "180+2"]
[Date "2023.07.18"]
[WhiteClock "0:01:06"]
[BlackClock "0:00:41"]
[Board "109"]

1. e4 {[%clk 0:02:46]}  g6 {[%clk 0:02:58]} 2. d4 {[%clk 0:02:45]}  Bg7 {[%clk 0:02:59]} 3. Be2 {[%clk 0:02:45]}  c6 {[%clk 0:03:00]} 4. h4 {[%clk 0:02:46]}  h5 {[%clk 0:03:00]} 5. Nf3 {[%clk 0:02:45]}  d5 {[%clk 0:02:59]} 6. e5 {[%clk 0:02:45]}  Nh6 {[%clk 0:02:59]} 7. Ng5 {[%clk 0:02:45]}  f6 {[%clk 0:02:58]} 8. exf6 {[%clk 0:02:44]}  exf6 {[%clk 0:02:59]} 9. Nf3 {[%clk 0:02:44]}  Bg4 {[%clk 0:02:57]} 10. c3 {[%clk 0:02:44]}  Nf5 {[%clk 0:02:55]} 11. Nbd2 {[%clk 0:02:41]}  Nd7 {[%clk 0:02:54]} 12. Nf1 {[%clk 0:02:41]}  Nd6 {[%clk 0:02:50]} 13. Ne3 {[%clk 0:02:41]}  Be6 {[%clk 0:02:50]} 14. Bd3 {[%clk 0:02:39]}  Kf7 {[%clk 0:02:48]} 15. Qc2 {[%clk 0:02:37]}  Nf8 {[%clk 0:02:42]} 16. Bd2 {[%clk 0:02:34]}  Qd7 {[%clk 0:02:34]} 17. O-O {[%clk 0:02:23]}  Bh6 {[%clk 0:02:29]} 18. a4 {[%clk 0:02:16]}  Kg7 {[%clk 0:02:29]} 19. Rae1 {[%clk 0:02:11]}  Bf7 {[%clk 0:02:28]} 20. g3 {[%clk 0:02:08]}  Re8 {[%clk 0:02:21]} 21. Ng2 {[%clk 0:02:07]}  Bxd2 {[%clk 0:02:16]} 22. Qxd2 {[%clk 0:02:07]}  Ne4 {[%clk 0:02:10]} 23. Qc2 {[%clk 0:02:06]}  Nd6 {[%clk 0:01:31]} 24. Nf4 {[%clk 0:02:01]}  Rxe1 {[%clk 0:01:23]} 25. Rxe1 {[%clk 0:01:57]}  Rh6 {[%clk 0:01:21]} 26. b4 {[%clk 0:01:43]}  Ne6 {[%clk 0:01:18]} 27. Nxe6+ {[%clk 0:01:40]}  Bxe6 {[%clk 0:01:19]} 28. Qe2 {[%clk 0:01:40]}  Kf7 {[%clk 0:01:14]} 29. a5 {[%clk 0:01:37]}  Rh8 {[%clk 0:01:13]} 30. Bxg6+ {[%clk 0:01:35]}  Kxg6 {[%clk 0:01:13]} 31. Qxe6 {[%clk 0:01:35]}  Qxe6 {[%clk 0:01:12]} 32. Rxe6 {[%clk 0:01:36]}  Ne4 {[%clk 0:01:04]} 33. Re7 {[%clk 0:01:27]}  Rb8 {[%clk 0:00:56]} 34. a6 {[%clk 0:01:25]}  bxa6 {[%clk 0:00:56]} 35. Ne5+ {[%clk 0:01:24]}  fxe5 {[%clk 0:00:53]} 36. Re6+ {[%clk 0:01:21]}  Kf7 {[%clk 0:00:51]} 37. Rxc6 {[%clk 0:01:21]}  exd4 {[%clk 0:00:50]} 38. cxd4 {[%clk 0:01:22]}  Rxb4 {[%clk 0:00:50]} 39. Rxa6 {[%clk 0:01:21]}  Rxd4 {[%clk 0:00:50]} 40. Rxa7+ {[%clk 0:01:21]}  Kg6 {[%clk 0:00:50]} 41. Kg2 {[%clk 0:01:21]}  Rd2 {[%clk 0:00:49]} 42. Ra6+ {[%clk 0:01:18]}  Kf5 {[%clk 0:00:49]} 43. Rh6 {[%clk 0:01:18]}  Rxf2+ {[%clk 0:00:47]} 44. Kg1 {[%clk 0:01:19]}  Rf3 {[%clk 0:00:46]} 45. Rxh5+ {[%clk 0:01:19]}  Ke6 {[%clk 0:00:47]} 46. Rh6+ {[%clk 0:01:17]}  Ke5 {[%clk 0:00:47]} 47. Rh5+ {[%clk 0:01:14]}  Kd4 {[%clk 0:00:47]} 48. Kg2 {[%clk 0:01:14]}  Rxg3+ {[%clk 0:00:47]} 49. Kf1 {[%clk 0:01:15]}  Ke3 {[%clk 0:00:41]} 50. Rf5 {[%clk 0:01:06]}  Nd2+ {[%clk 0:00:40]} 51. Ke1 {[%clk 0:01:05]}  Rg1+ {[%clk 0:00:40]} 52. Rf1 {[%clk 0:01:06]}  Rxf1# {[%clk 0:00:41]} 0-1


[Site "https://www.chess.com"]

[Event "Titled Tuesday Blitz July 18 Late 2023"]
[White "Pinheiro, Iung Alicio de O."]
[Black "AndresDelgado77"]
[WhiteFideId "2104350"]
[WhiteElo "2602"]
[BlackElo "2354"]
[Result "1-0"]
[Round "1"]
[TimeControl "180+2"]
[Date "2023.07.18"]
[WhiteClock "0:00:23"]
[BlackClock "0:00:00"]
[Board "110"]

1. e4 {[%clk 0:03:00]}  e6 {[%clk 0:02:58]} 2. d4 {[%clk 0:02:57]}  d5 {[%clk 0:02:58]} 3. e5 {[%clk 0:02:58]}  c5 {[%clk 0:02:58]} 4. c3 {[%clk 0:02:59]}  Qb6 {[%clk 0:02:58]} 5. Nf3 {[%clk 0:02:59]}  Nc6 {[%clk 0:02:59]} 6. Bd3 {[%clk 0:02:59]}  a5 {[%clk 0:02:55]} 7. O-O {[%clk 0:02:59]}  Bd7 {[%clk 0:02:55]} 8. Re1 {[%clk 0:02:58]}  Nh6 {[%clk 0:02:48]} 9. h3 {[%clk 0:02:55]}  a4 {[%clk 0:02:46]} 10. Bc2 {[%clk 0:02:41]}  cxd4 {[%clk 0:02:40]} 11. Bxa4 {[%clk 0:02:33]}  Nxe5 {[%clk 0:02:26]} 12. Nxe5 {[%clk 0:01:53]}  Bxa4 {[%clk 0:02:22]} 13. Qh5 {[%clk 0:01:53]}  Bc2 {[%clk 0:01:45]} 14. Bxh6 {[%clk 0:01:46]}  Bg6 {[%clk 0:01:44]} 15. Nxg6 {[%clk 0:01:35]}  hxg6 {[%clk 0:01:44]} 16. Qxd5 {[%clk 0:01:35]}  Rd8 {[%clk 0:01:19]} 17. Qc4 {[%clk 0:00:49]}  gxh6 {[%clk 0:01:08]} 18. Nd2 {[%clk 0:00:48]}  Qxb2 {[%clk 0:00:59]} 19. Ne4 {[%clk 0:00:43]}  Be7 {[%clk 0:00:50]} 20. Reb1 {[%clk 0:00:38]}  Qa3 {[%clk 0:00:46]} 21. Rxb7 {[%clk 0:00:35]}  O-O {[%clk 0:00:36]} 22. cxd4 {[%clk 0:00:35]}  Rd5 {[%clk 0:00:30]} 23. Rd1 {[%clk 0:00:29]}  Rfd8 {[%clk 0:00:21]} 24. Rd3 {[%clk 0:00:28]}  Qa8 {[%clk 0:00:18]} 25. Rxe7 {[%clk 0:00:26]}  f5 {[%clk 0:00:07]} 26. Nf6+ {[%clk 0:00:26]}  Kf8 {[%clk 0:00:07]} 27. Nxd5 {[%clk 0:00:27]}  exd5 {[%clk 0:00:00]} 28. Qc7 {[%clk 0:00:23]} 1-0


[Site "https://www.chess.com"]

[Event "Titled Tuesday Blitz July 18 Late 2023"]
[White "Castaneda, Jhon David"]
[Black "Bogaudinov, Rushan"]
[WhiteFideId "4405048"]
[BlackFideId "4129288"]
[WhiteElo "2601"]
[BlackElo "2354"]
[Result "0-1"]
[Round "1"]
[TimeControl "180+2"]
[Date "2023.07.18"]
[WhiteClock "0:00:58"]
[BlackClock "0:00:45"]
[Board "112"]

1. d4 {[%clk 0:02:59]}  d5 {[%clk 0:02:59]} 2. Nf3 {[%clk 0:02:59]}  e6 {[%clk 0:03:00]} 3. c4 {[%clk 0:03:00]}  Nf6 {[%clk 0:03:00]} 4. Nc3 {[%clk 0:03:01]}  Bb4 {[%clk 0:02:59]} 5. cxd5 {[%clk 0:03:01]}  Nxd5 {[%clk 0:02:54]} 6. Qc2 {[%clk 0:02:59]}  O-O {[%clk 0:02:54]} 7. e4 {[%clk 0:02:59]}  Nxc3 {[%clk 0:02:50]} 8. bxc3 {[%clk 0:03:00]}  Be7 {[%clk 0:02:50]} 9. Bd3 {[%clk 0:02:59]}  h6 {[%clk 0:02:38]} 10. Be3 {[%clk 0:02:53]}  b6 {[%clk 0:02:35]} 11. Qe2 {[%clk 0:02:52]}  Bb7 {[%clk 0:02:33]} 12. O-O {[%clk 0:02:51]}  Nd7 {[%clk 0:02:32]} 13. Rad1 {[%clk 0:02:51]}  Nf6 {[%clk 0:02:31]} 14. e5 {[%clk 0:02:47]}  Nd7 {[%clk 0:02:15]} 15. Nd2 {[%clk 0:02:41]}  c5 {[%clk 0:02:12]} 16. Qg4 {[%clk 0:02:41]}  Kh8 {[%clk 0:02:09]} 17. Qh5 {[%clk 0:02:38]}  Bg5 {[%clk 0:02:00]} 18. f4 {[%clk 0:02:37]}  cxd4 {[%clk 0:01:53]} 19. fxg5 {[%clk 0:02:30]}  dxe3 {[%clk 0:01:52]} 20. gxh6 {[%clk 0:02:30]}  g6 {[%clk 0:01:40]} 21. Qe2 {[%clk 0:02:11]}  exd2 {[%clk 0:01:29]} 22. Rxd2 {[%clk 0:02:11]}  Qg5 {[%clk 0:01:22]} 23. Bxg6 {[%clk 0:01:54]}  Nxe5 {[%clk 0:01:21]} 24. Bb1 {[%clk 0:01:39]}  Rad8 {[%clk 0:01:09]} 25. Rxd8 {[%clk 0:01:33]}  Rxd8 {[%clk 0:01:08]} 26. h4 {[%clk 0:01:32]}  Qg3 {[%clk 0:00:59]} 27. Be4 {[%clk 0:00:58]}  Ng4 {[%clk 0:00:45]} 0-1


[Site "https://www.chess.com"]